[Event "Reykjavik Chess Congress 2020"]
[Site "Reykjavik"]
[Date "2020.01.26"]
[Round "7.1"]
[White "Bjornsson, Sigurbjorn"]
[Black "Stefansson, Vignir Vatnar"]
[Result "1-0"]
[ECO "B01"]
[WhiteElo "2331"]
[BlackElo "2323"]
[Annotator "NA"]
[PlyCount "151"]
[EventDate "2020.01.05"]
[EventType "swiss"]
[EventCountry "ISL"]
[SourceTitle "playchess.com"]
[Source "ChessBase"]
[SourceQuality "1"]
[TimeControl "40/5400+30:900+30"]

1. e4 {[%emt 0:00:00]} d5 {[%emt 0:00:00]} 2. exd5 {[%emt 0:00:00]} Qxd5 {[%emt 0:00:00]} 3. Nc3 {[%emt 0:00:00]} Qd6 {[%emt 0:00:00]} 4. d4 {[%emt 0:00:11]} Nf6 {[%emt 0:00:00]} 5. Nf3 {[%emt 0:00:23]} c6 {[%emt 0:00:02]} 6. Ne5 {[%emt 0:00:33]} Nbd7 {[%emt 0:00:06]} 7. Nc4 {[%emt 0:00:29]} Qc7 {[%emt 0:00:05]} 8. Qf3 {[%emt 0:01:22]} Nb6 {[%emt 0:00:06]} 9. h3 {[%emt 0:15:24]} Be6 {[%emt 0:00:21]} 10. Bf4 {[%emt 0:05:26]} Qd8 {[%emt 0:00:12]} 11. Nxb6 {[%emt 0:00:52]} Qxb6 {[%emt 0:00:33]} 12. O-O-O {[%emt 0:06:03]} Qa5 {[%emt 0:00:38]} 13. a3 {[%emt 0:03:57]} Nd5 {[%emt 0:10:35]} 14. Nxd5 {[%emt 0:07:45]} Bxd5 {[%emt 0:02:22]} 15. Qg3 {[%emt 0:03:42]} b5 {[%emt 0:00:17]} 16. Bd2 {[%emt 0:04:19]} Qd8 {[%emt 0:04:20]} 17. Bd3 {[%emt 0:04:51]} e6 {[%emt 0:05:24]} 18. Rhe1 {[%emt 0:04:16]} a5 {[%emt 0:02:23]} 19. f4 {[%emt 0:04:27]} Qc7 {[%emt 0:02:48]} 20. Qg4 {[%emt 0:05:31]} h5 {[%emt 0:04:59]} 21. Qg5 {[%emt 0:04:13]} Qe7 {[%emt 0:01:16]} 22. Qg3 {[%emt 0:04:22]} b4 {[%emt 0:03:20]} 23. a4 {[%emt 0:00:25]} h4 {[%emt 0:03:43]} 24. Qg4 {[%emt 0:01:07]} g6 {[%emt 0:00:29]} 25. f5 {[%emt 0:01:35]} gxf5 {[%emt 0:00:11]} 26. Bxf5 {[%emt 0:00:21]} O-O-O {[%emt 0:00:34]} 27. Bd3 {[%emt 0:01:28]} Bh6 {[%emt 0:04:48]} 28. Ba6+ {[%emt 0:02:20]} Kd7 {[%emt 0:00:16]} 29. Bxh6 {[%emt 0:01:29]} Rxh6 {[%emt 0:00:10]} 30. Bd3 {[%emt 0:00:55]} Rhh8 {[%emt 0:00:43]} 31. Qe2 {[%emt 0:05:11]} Qg5+ {[%emt 0:10:58]} 32. Rd2 {[%emt 0:00:40]} Rdg8 {[%emt 0:09:33]} 33. Be4 {[%emt 0:03:33]} Bxe4 {[%emt 0:00:37]} 34. Qxe4 {[%emt 0:00:02]} Qd5 {[%emt 0:00:06]} 35. Qf4 {[%emt 0:01:39]} Rh7 {[%emt 0:00:20]} 36. Kb1 {[%emt 0:05:26]} Qg5 {[%emt 0:03:21]} 37. Qf2 {[%emt 0:01:28]} Qg3 {[%emt 0:05:04]} 38. Qf1 {[%emt 0:01:13]} Rg5 {[%emt 0:01:56]} 39. Rf2 {[%emt 0:00:49]} Ke7 {[%emt 0:00:26]} 40. Re4 {[%emt 0:00:00]} b3 {[%emt 0:00:00]} 41. Ref4 {[%emt 0:03:23]} f5 {[%emt 0:06:02]} 42. Qa6 {[%emt 0:03:42]} Qe3 {[%emt 0:02:30]} 43. cxb3 {[%emt 0:02:16]} Qxb3 {[%emt 0:00:50]} 44. Qxa5 {[%emt 0:06:52]} Kf7 {[%emt 0:00:49]} 45. R4f3 {[%emt 0:01:26]} Qd1+ {[%emt 0:00:50]} 46. Ka2 {[%emt 0:00:01]} Kg6 {[%emt 0:05:10]} 47. Re3 {[%emt 0:00:50]} Qxd4 {[%emt 0:01:02]} 48. Rxe6+ {[%emt 0:00:40]} Kh5 {[%emt 0:00:01]} 49. Qe1 {[%emt 0:01:40]} Qd5+ {[%emt 0:06:46]} 50. b3 {[%emt 0:00:03]} Rg3 {[%emt 0:00:11]} 51. Rxf5+ {[%emt 0:00:57]} Qxf5 {[%emt 0:00:08]} 52. Re5 {[%emt 0:00:05]} Rf7 {[%emt 0:04:30]} 53. Qd1+ {[%emt 0:01:09]} Kg6 {[%emt 0:01:59]} 54. Rxf5 {[%emt 0:00:05]} Rxf5 {[%emt 0:00:01]} 55. Qd6+ {[%emt 0:00:55]} Rf6 {[%emt 0:00:01]} 56. Qd4 {[%emt 0:00:21]} Kg5 {[%emt 0:02:51]} 57. Qe5+ {[%emt 0:00:19]} Kg6 {[%emt 0:00:15]} 58. Ka3 {[%emt 0:00:17]} Rg5 {[%emt 0:00:54]} 59. Qe4+ {[%emt 0:00:37]} Kh5 {[%emt 0:00:25]} 60. Qe8+ {[%emt 0:00:40]} Rfg6 {[%emt 0:00:01]} 61. Qh8+ {[%emt 0:00:24]} Rh6 {[%emt 0:00:01]} 62. Qe8+ {[%emt 0:00:37]} Rhg6 {[%emt 0:00:01]} 63. Qe2+ {[%emt 0:00:21]} Kh6 {[%emt 0:00:00]} 64. Qe3 {[%emt 0:00:12]} Kh5 {[%emt 0:00:18]} 65. Qf3+ {[%emt 0:00:06]} Kh6 {[%emt 0:00:03]} 66. Qf8+ {[%emt 0:00:38]} Kh5 {[%emt 0:00:05]} 67. Qf3+ {[%emt 0:00:21]} Kh6 {[%emt 0:00:08]} 68. Qf4 {[%emt 0:00:16]} Kh5 {[%emt 0:00:05]} 69. Qc7 {[%emt 0:00:55]} Rxg2 {[%emt 0:04:08]} 70. Qh7+ {[%emt 0:00:59]} Kg5 {[%emt 0:00:04]} 71. a5 {[%emt 0:00:26]} c5 {[%emt 0:03:42]} 72. Qe7+ {[%emt 0:00:13]} Kh5 {[%emt 0:00:01]} 73. Qxc5+ {[%emt 0:00:35]} R2g5 {[%emt 0:00:01]} 74. Qc3 {[%emt 0:00:40]} Rg3 {[%emt 0:00:01]} 75. Qh8+ {[%emt 0:00:48]} Kg5 {[%emt 0:00:11]} 76. Qc8 {[%emt 0:00:21]} 1-0

[Event "Reykjavik Chess Congress 2020"]
[Site "Reykjavik"]
[Date "2020.01.26"]
[Round "7.2"]
[White "Hardarson, Petur Palmi"]
[Black "Kjartansson, Gudmundur"]
[Result "1/2-1/2"]
[ECO "A50"]
[WhiteElo "2027"]
[BlackElo "2453"]
[Annotator "ChessBase"]
[PlyCount "165"]
[EventDate "2020.01.05"]
[EventType "swiss"]
[EventCountry "ISL"]
[SourceTitle "playchess.com"]
[Source "ChessBase"]
[SourceQuality "1"]
[TimeControl "40/5400+30:900+30"]

1. d4 {[%emt 0:01:34]} Nf6 {[%emt 0:00:00]} 2. Nf3 {[%emt 0:00:42]} b6 {[%emt 0:01:27]} 3. g3 {[%emt 0:00:39]} Bb7 {[%emt 0:00:08]} 4. Bg2 {[%emt 0:00:13]} g6 {[%emt 0:00:04]} 5. O-O {[%emt 0:00:57]} Bg7 {[%emt 0:00:02]} 6. c4 {[%emt 0:00:51]} O-O {[%emt 0:00:05]} 7. Nc3 {[%emt 0:02:35]} Ne4 {[%emt 0:00:06]} 8. Nxe4 {[%emt 0:02:47]} Bxe4 {[%emt 0:00:16]} 9. Be3 {[%emt 0:00:28]} d6 {[%emt 0:02:12]} 10. Qd2 {[%emt 0:01:22]} Nd7 {[%emt 0:03:03]} 11. Bh6 {[%emt 0:01:24]} c5 {[%emt 0:00:42]} 12. Bxg7 {[%emt 0:01:38]} Kxg7 {[%emt 0:00:07]} 13. b3 {[%emt 0:01:02]} Qc7 {[%emt 0:02:47]} 14. d5 {[%emt 0:03:36]} Nf6 {[%emt 0:08:53]} 15. Bh3 {[%emt 0:04:15]} Bxf3 {[%emt 0:00:38]} 16. exf3 {[%emt 0:00:09]} b5 {[%emt 0:01:17]} 17. Rfe1 {[%emt 0:02:38]} bxc4 {[%emt 0:03:32]} 18. bxc4 {[%emt 0:00:19]} Rab8 {[%emt 0:00:32]} 19. Rab1 {[%emt 0:04:57]} Rxb1 {[%emt 0:03:01]} 20. Rxb1 {[%emt 0:00:08]} Rb8 {[%emt 0:00:06]} 21. Rb3 {[%emt 0:05:27]} Rxb3 {[%emt 0:06:30]} 22. axb3 {[%emt 0:00:08]} Qb6 {[%emt 0:19:05]} 23. Qe3 {[%emt 0:23:56]} Ng8 {[%emt 0:02:02]} 24. Bd7 {[%emt 0:06:53]} Qb7 {[%emt 0:16:31]} 25. Bh3 {[%emt 0:03:16]} Qa6 {[%emt 0:05:30]} 26. Qc3+ {[%emt 0:02:44]} Nf6 {[%emt 0:00:26]} 27. Bd7 {[%emt 0:02:54]} Qa2 {[%emt 0:00:40]} 28. Ba4 {[%emt 0:01:43]} Qb1+ {[%emt 0:01:08]} 29. Kg2 {[%emt 0:01:05]} Qf5 {[%emt 0:01:09]} 30. Qa5 {[%emt 0:03:19]} g5 {[%emt 0:00:25]} 31. g4 {[%emt 0:03:14]} Qe5 {[%emt 0:00:13]} 32. Qxa7 {[%emt 0:01:17]} h5 {[%emt 0:00:07]} 33. h3 {[%emt 0:02:27]} hxg4 {[%emt 0:06:45]} 34. hxg4 {[%emt 0:00:39]} Nh7 {[%emt 0:00:02]} 35. Bd7 {[%emt 0:01:16]} Nf6 {[%emt 0:00:33]} 36. Bf5 {[%emt 0:03:02]} Ng8 {[%emt 0:00:16]} 37. Qa2 {[%emt 0:02:35]} Nh6 {[%emt 0:01:10]} 38. Bb1 {[%emt 0:01:11]} Ng8 {[%emt 0:03:03]} 39. Qc2 {[%emt 0:01:06]} Nf6 {[%emt 0:00:07]} 40. Qf5 {[%emt 0:00:00]} Qf4 {[%emt 0:00:00]} 41. Kh3 {[%emt 0:06:23]} Qc1 {[%emt 0:12:39]} 42. Kg2 {[%emt 0:00:43]} Qf4 {[%emt 0:01:09]} 43. Kh3 {[%emt 0:00:40]} Qc1 {[%emt 0:02:40]} 44. Kg2 {[%emt 0:00:23]} Kh6 {[%emt 0:06:08]} 45. Bc2 {[%emt 0:01:05]} Qd2 {[%emt 0:01:31]} 46. Qd3 {[%emt 0:01:30]} Qxd3 {[%emt 0:02:01]} 47. Bxd3 {[%emt 0:00:07]} e5 {[%emt 0:00:57]} 48. dxe6 {[%emt 0:02:29]} fxe6 {[%emt 0:00:04]} 49. Kg3 {[%emt 0:02:06]} e5 {[%emt 0:00:13]} 50. Bf5 {[%emt 0:00:14]} d5 {[%emt 0:01:17]} 51. cxd5 {[%emt 0:01:03]} Nxd5 {[%emt 0:00:01]} 52. Kg2 {[%emt 0:00:39]} Kg7 {[%emt 0:01:12]} 53. Kf1 {[%emt 0:00:22]} Nc3 {[%emt 0:03:17]} 54. Bd3 {[%emt 0:01:10]} Kf6 {[%emt 0:00:44]} 55. Ke1 {[%emt 0:00:58]} Nd5 {[%emt 0:01:20]} 56. Kd2 {[%emt 0:00:32]} Ke7 {[%emt 0:00:22]} 57. Bc4 {[%emt 0:01:00]} Nf6 {[%emt 0:00:21]} 58. Ke3 {[%emt 0:00:56]} Kd6 {[%emt 0:00:08]} 59. Kd3 {[%emt 0:00:54]} e4+ {[%emt 0:01:31]} 60. fxe4 {[%emt 0:01:48]} Nxg4 {[%emt 0:00:05]} 61. Ke2 {[%emt 0:01:27]} Ke5 {[%emt 0:01:28]} 62. f3 {[%emt 0:00:46]} Nf6 {[%emt 0:00:12]} 63. Ke3 {[%emt 0:00:19]} Ne8 {[%emt 0:01:00]} 64. Bf1 {[%emt 0:00:45]} Nd6 {[%emt 0:00:11]} 65. Bc4 {[%emt 0:00:57]} Nb7 {[%emt 0:00:24]} 66. Bb5 {[%emt 0:00:42]} Na5 {[%emt 0:00:49]} 67. Bc4 {[%emt 0:00:10]} Nc6 {[%emt 0:00:21]} 68. Bg8 {[%emt 0:01:01]} Nb4 {[%emt 0:01:05]} 69. Bc4 {[%emt 0:00:53]} Nc2+ {[%emt 0:00:17]} 70. Kd2 {[%emt 0:00:28]} Nd4 {[%emt 0:00:23]} 71. Ke3 {[%emt 0:00:15]} Nc6 {[%emt 0:00:14]} 72. Bg8 {[%emt 0:00:20]} Ne7 {[%emt 0:00:17]} 73. Bc4 {[%emt 0:00:22]} Ng6 {[%emt 0:00:10]} 74. Be2 {[%emt 0:00:39]} Nf4 {[%emt 0:00:21]} 75. Bf1 {[%emt 0:00:12]} Ne6 {[%emt 0:01:12]} 76. Bc4 {[%emt 0:00:37]} Nd4 {[%emt 0:00:14]} 77. Bg8 {[%emt 0:00:37]} Nb5 {[%emt 0:00:53]} 78. Bc4 {[%emt 0:00:29]} Nd6 {[%emt 0:00:08]} 79. Bg8 {[%emt 0:00:26]} Ne8 {[%emt 0:00:30]} 80. Bf7 {[%emt 0:00:23]} Nd6 {[%emt 0:00:16]} 81. Bc4 {[%emt 0:00:41]} Ne8 {[%emt 0:00:10]} 82. Bf7 {[%emt 0:00:38]} Nd6 {[%emt 0:01:12]} 83. Bc4 {[%emt 0:00:52]} 1/2-1/2

[Event "Reykjavik Chess Congress 2020"]
[Site "Reykjavik"]
[Date "2020.01.26"]
[Round "7.3"]
[White "Mai, Aron Thor"]
[Black "Kjartansson, David"]
[Result "0-1"]
[ECO "B46"]
[WhiteElo "2167"]
[BlackElo "2356"]
[Annotator "NA"]
[PlyCount "64"]
[EventDate "2020.01.05"]
[EventType "swiss"]
[EventCountry "ISL"]
[SourceTitle "playchess.com"]
[Source "ChessBase"]
[SourceQuality "1"]
[TimeControl "40/5400+30:900+30"]

1. e4 {[%emt 1:30:30]} c5 {[%emt 1:30:30]} 2. Nf3 {[%emt 0:00:30]} e6 {[%emt 0:00:00]} 3. d4 {[%emt 0:00:00]} cxd4 {[%emt 0:00:00]} 4. Nxd4 {[%emt 0:00:00]} Nc6 {[%emt 0:00:00]} 5. Nc3 {[%emt 0:00:00]} a6 {[%emt 0:00:00]} 6. Nxc6 {[%emt 0:00:00]} bxc6 {[%emt 0:00:00]} 7. Bd3 {[%emt 0:00:00]} d5 {[%emt 0:00:00]} 8. O-O {[%emt 0:00:00]} Nf6 {[%emt 0:00:00]} 9. Re1 {[%emt 0:00:00]} Be7 {[%emt 0:00:00]} 10. e5 {[%emt 0:00:00]} Nd7 {[%emt 0:00:00]} 11. Qg4 {[%emt 0:00:00]} g6 {[%emt 0:00:00]} 12. Bh6 {[%emt 0:00:00]} Rb8 {[%emt 0:00:00]} 13. Nd1 {[%emt 0:00:00]} Rb4 {[%emt 0:00:00]} 14. c4 {[%emt 0:00:00]} dxc4 {[%emt 0:00:00]} 15. a3 {[%emt 0:00:00]} Rb5 {[%emt 0:00:00]} 16. Bf1 {[%emt 0:00:00]} Rxe5 {[%emt 0:00:00]} 17. Ne3 {[%emt 0:00:00]} Rh5 {[%emt 0:00:00]} 18. Bg7 {[%emt 0:00:00]} Rg8 {[%emt 0:00:00]} 19. Bc3 {[%emt 0:00:00]} Qc7 {[%emt 0:00:00]} 20. f4 {[%emt 0:00:00]} Rh4 {[%emt 0:00:00]} 21. Qe2 {[%emt 0:00:00]} g5 {[%emt 0:00:00]} 22. Nf5 {[%emt 0:00:00]} Bc5+ {[%emt 0:00:00]} 23. Kh1 {[%emt 0:00:00]} Rxh2+ {[%emt 0:00:00]} 24. Kxh2 {[%emt 0:00:00]} Qxf4+ {[%emt 0:00:00]} 25. g3 {[%emt 0:00:00]} Qxf5 {[%emt 0:00:00]} 26. Qxc4 {[%emt 0:00:00]} Rg6 {[%emt 0:00:00]} 27. Bd4 {[%emt 0:00:00]} Qf3 {[%emt 0:00:00]} 28. Bg2 {[%emt 0:00:00]} Rh6+ {[%emt 0:00:00]} 29. Kg1 {[%emt 0:00:00]} Bxd4+ {[%emt 0:00:00]} 30. Qxd4 {[%emt 0:00:00]} Qxg3 {[%emt 0:00:00]} 31. Rad1 {[%emt 0:01:59]} Qh2+ {[%emt 0:00:00]} 32. Kf1 {[%emt 0:02:50]} Rf6+ {[%emt 0:00:00]} 0-1

[Event "Reykjavik Chess Congress 2020"]
[Site "Reykjavik"]
[Date "2020.01.26"]
[Round "7.4"]
[White "Karlsson, Mikael Johann"]
[Black "Mai, Alexander Oliver"]
[Result "0-1"]
[ECO "C20"]
[WhiteElo "2155"]
[BlackElo "1958"]
[Annotator "NA"]
[PlyCount "100"]
[EventDate "2020.01.05"]
[EventType "swiss"]
[EventCountry "ISL"]
[SourceTitle "playchess.com"]
[Source "ChessBase"]
[SourceQuality "1"]
[TimeControl "40/5400+30:900+30"]

1. e4 {[%emt 0:01:15]} e5 {[%emt 0:01:57]} 2. c4 {[%emt 0:00:06]} Nc6 {[%emt 0:03:17]} 3. g3 {[%emt 0:00:03]} Bc5 {[%emt 0:01:32]} 4. Nc3 {[%emt 0:05:20]} Nf6 {[%emt 0:00:54]} 5. d3 {[%emt 0:00:40]} d6 {[%emt 0:01:37]} 6. Be3 {[%emt 0:02:47]} Nd4 {[%emt 0:11:11]} 7. Bg2 {[%emt 0:03:33]} Ng4 {[%emt 0:01:55]} 8. Nf3 {[%emt 0:07:31]} Nxe3 {[%emt 0:03:23]} 9. fxe3 {[%emt 0:02:15]} Nxf3+ {[%emt 0:00:38]} 10. Qxf3 {[%emt 0:00:04]} Be6 {[%emt 0:01:21]} 11. O-O {[%emt 0:01:43]} Qg5 {[%emt 0:01:48]} 12. Rfe1 {[%emt 0:04:03]} O-O {[%emt 0:02:46]} 13. a3 {[%emt 0:02:21]} a5 {[%emt 0:03:38]} 14. Na4 {[%emt 0:04:28]} Ba7 {[%emt 0:01:04]} 15. b4 {[%emt 0:00:05]} Bg4 {[%emt 0:07:53]} 16. Qf2 {[%emt 0:05:35]} f5 {[%emt 0:03:02]} 17. c5 {[%emt 0:04:54]} fxe4 {[%emt 0:15:11]} 18. Qa2+ {[%emt 0:00:04]} Kh8 {[%emt 0:00:08]} 19. Bxe4 {[%emt 0:00:03]} Bd7 {[%emt 0:02:43]} 20. Nb2 {[%emt 0:03:15]} dxc5 {[%emt 0:04:05]} 21. bxa5 {[%emt 0:00:06]} c4 {[%emt 0:05:04]} 22. Nxc4 {[%emt 0:00:04]} Be6 {[%emt 0:00:53]} 23. Qd2 {[%emt 0:04:15]} Bxc4 {[%emt 0:02:07]} 24. dxc4 {[%emt 0:00:25]} Rad8 {[%emt 0:03:21]} 25. Qc3 {[%emt 0:00:26]} Rf4 {[%emt 0:15:11]} 26. Qc2 {[%emt 0:11:49]} Rf6 {[%emt 0:02:03]} 27. c5 {[%emt 0:00:55]} h5 {[%emt 0:00:57]} 28. Rad1 {[%emt 0:02:57]} Rdf8 {[%emt 0:00:31]} 29. Re2 {[%emt 0:00:35]} h4 {[%emt 0:00:36]} 30. Kg2 {[%emt 0:02:13]} Qg4 {[%emt 0:00:57]} 31. Rde1 {[%emt 0:05:25]} hxg3 {[%emt 0:03:00]} 32. hxg3 {[%emt 0:00:04]} Rh6 {[%emt 0:00:07]} 33. Rf2 {[%emt 0:01:43]} Qh3+ {[%emt 0:00:32]} 34. Kg1 {[%emt 0:00:09]} Qxg3+ {[%emt 0:00:16]} 35. Bg2 {[%emt 0:00:04]} Rh1+ {[%emt 0:01:04]} 36. Kxh1 {[%emt 0:00:05]} Rxf2 {[%emt 0:00:12]} 37. Qe4 {[%emt 0:00:51]} Rxg2 {[%emt 0:00:17]} 38. Qxg2 {[%emt 0:00:06]} Qxe1+ {[%emt 0:00:03]} 39. Kh2 {[%emt 0:00:05]} Qxe3 {[%emt 0:00:42]} 40. Qxb7 {[%emt 0:00:00]} Qf2+ {[%emt 0:00:00]} 41. Kh3 {[%emt 0:00:24]} Bxc5 {[%emt 0:01:33]} 42. Qxc7 {[%emt 0:00:18]} e4 {[%emt 0:03:27]} 43. a6 {[%emt 0:01:38]} Qf3+ {[%emt 0:01:33]} 44. Kh2 {[%emt 0:00:16]} Qf2+ {[%emt 0:04:51]} 45. Kh3 {[%emt 0:00:10]} Qf1+ {[%emt 0:00:59]} 46. Kh2 {[%emt 0:01:12]} Bg1+ {[%emt 0:00:32]} 47. Kg3 {[%emt 0:00:06]} Qf3+ {[%emt 0:01:10]} 48. Kh4 {[%emt 0:00:09]} Bf2+ {[%emt 0:01:23]} 49. Kg5 {[%emt 0:00:04]} Be3+ {[%emt 0:02:23]} 50. Kh4 {[%emt 0:00:25]} g5# {[%emt 0:00:12]} 0-1

[Event "Reykjavik Chess Congress 2020"]
[Site "Reykjavik"]
[Date "2020.01.26"]
[Round "7.5"]
[White "Bjornsson, Eirikur K."]
[Black "Fridjonsson, Julius"]
[Result "1/2-1/2"]
[ECO "A21"]
[WhiteElo "1954"]
[BlackElo "2117"]
[Annotator "NA"]
[PlyCount "45"]
[EventDate "2020.01.05"]
[EventType "swiss"]
[EventCountry "ISL"]
[SourceTitle "playchess.com"]
[Source "ChessBase"]
[SourceQuality "1"]
[TimeControl "40/5400+30:900+30"]

1. c4 {[%emt 0:00:00]} e5 {[%emt 0:00:38]} 2. Nc3 {[%emt 0:00:00]} f5 {[%emt 0:00:32]} 3. d4 {[%emt 0:00:09]} e4 {[%emt 0:00:07]} 4. Nh3 {[%emt 0:00:04]} Nf6 {[%emt 0:00:43]} 5. Bg5 {[%emt 0:01:05]} Be7 {[%emt 0:10:48]} 6. e3 {[%emt 0:05:08]} O-O {[%emt 0:05:56]} 7. Nf4 {[%emt 0:03:38]} d6 {[%emt 0:06:21]} 8. Qb3 {[%emt 0:04:57]} c6 {[%emt 0:00:36]} 9. O-O-O {[%emt 0:05:54]} Na6 {[%emt 0:02:58]} 10. f3 {[%emt 0:03:33]} Ne8 {[%emt 0:07:40]} 11. c5+ {[%emt 0:22:06]} Kh8 {[%emt 0:13:34]} 12. Bxe7 {[%emt 0:07:19]} Qxe7 {[%emt 0:00:07]} 13. fxe4 {[%emt 0:02:22]} fxe4 {[%emt 0:06:04]} 14. cxd6 {[%emt 0:03:27]} Nxd6 {[%emt 0:01:14]} 15. h4 {[%emt 0:03:22]} Nc7 {[%emt 0:06:39]} 16. h5 {[%emt 0:07:43]} Be6 {[%emt 0:04:08]} 17. Qc2 {[%emt 0:04:54]} Nd5 {[%emt 0:08:23]} 18. Ncxd5 {[%emt 0:03:13]} Bxd5 {[%emt 0:03:01]} 19. Kb1 {[%emt 0:00:52]} Nf5 {[%emt 0:02:00]} 20. g4 {[%emt 0:06:51]} Nh6 {[%emt 0:00:18]} 21. Be2 {[%emt 0:03:09]} Nf7 {[%emt 0:04:59]} 22. Qc5 {[%emt 0:02:49]} Qg5 {[%emt 0:04:15]} 23. Bf1 {[%emt 0:00:23]} 1/2-1/2

[Event "Reykjavik Chess Congress 2020"]
[Site "Reykjavik"]
[Date "2020.01.26"]
[Round "7.6"]
[White "Ragnarsson, Johann"]
[Black "Halldorsson, Bragi"]
[Result "0-1"]
[ECO "D14"]
[WhiteElo "1946"]
[BlackElo "2089"]
[Annotator "NA"]
[PlyCount "108"]
[EventDate "2020.01.05"]
[EventType "swiss"]
[EventCountry "ISL"]
[SourceTitle "playchess.com"]
[Source "ChessBase"]
[SourceQuality "1"]
[TimeControl "40/5400+30:900+30"]

1. d4 {[%emt 0:00:00]} c6 {[%emt 0:00:00]} 2. c4 {[%emt 0:00:00]} d5 {[%emt 0:00:00]} 3. cxd5 {[%emt 0:00:00]} cxd5 {[%emt 0:00:10]} 4. Bf4 {[%emt 0:00:02]} Nc6 {[%emt 0:00:27]} 5. Nc3 {[%emt 0:00:07]} Nf6 {[%emt 0:00:10]} 6. Rc1 {[%emt 0:00:08]} Bf5 {[%emt 0:00:17]} 7. Nf3 {[%emt 0:00:22]} e6 {[%emt 0:00:15]} 8. e3 {[%emt 0:00:06]} Bd6 {[%emt 0:00:08]} 9. Bxd6 {[%emt 0:21:41]} Qxd6 {[%emt 0:00:14]} 10. Nh4 {[%emt 0:00:32]} Bg6 {[%emt 0:02:40]} 11. Qb3 {[%emt 0:05:57]} Rb8 {[%emt 0:07:07]} 12. Nb5 {[%emt 0:01:18]} Qe7 {[%emt 0:02:14]} 13. Nxg6 {[%emt 0:01:37]} hxg6 {[%emt 0:00:12]} 14. Qa4 {[%emt 0:04:08]} O-O {[%emt 0:01:40]} 15. Bd3 {[%emt 0:06:46]} a6 {[%emt 0:05:42]} 16. Nc3 {[%emt 0:00:19]} e5 {[%emt 0:02:49]} 17. dxe5 {[%emt 0:03:18]} Qxe5 {[%emt 0:05:05]} 18. O-O {[%emt 0:02:14]} b5 {[%emt 0:01:21]} 19. Qd1 {[%emt 0:01:50]} Rbc8 {[%emt 0:04:38]} 20. Qe2 {[%emt 0:10:01]} Rc7 {[%emt 0:07:07]} 21. f4 {[%emt 0:07:03]} Qd6 {[%emt 0:02:27]} 22. Bxb5 {[%emt 0:04:08]} axb5 {[%emt 0:08:35]} 23. Nxb5 {[%emt 0:00:13]} Qe7 {[%emt 0:00:39]} 24. Nxc7 {[%emt 0:00:06]} Qxc7 {[%emt 0:00:09]} 25. Qc2 {[%emt 0:04:12]} Rc8 {[%emt 0:00:52]} 26. b4 {[%emt 0:01:01]} Qb7 {[%emt 0:01:56]} 27. Qb3 {[%emt 0:00:39]} d4 {[%emt 0:01:25]} 28. b5 {[%emt 0:02:08]} Ne7 {[%emt 0:03:30]} 29. Rxc8+ {[%emt 0:00:19]} Nxc8 {[%emt 0:00:22]} 30. exd4 {[%emt 0:01:21]} Qe4 {[%emt 0:00:49]} 31. Qc3 {[%emt 0:05:58]} Nb6 {[%emt 0:00:27]} 32. h3 {[%emt 0:00:34]} Nfd5 {[%emt 0:01:23]} 33. Qd2 {[%emt 0:06:38]} Nc4 {[%emt 0:01:11]} 34. Qf2 {[%emt 0:00:11]} Nce3 {[%emt 0:00:44]} 35. Rc1 {[%emt 0:00:19]} f6 {[%emt 0:02:55]} 36. a4 {[%emt 0:07:39]} Nxf4 {[%emt 0:02:40]} 37. Re1 {[%emt 0:01:44]} Nfxg2 {[%emt 0:00:46]} 38. Re2 {[%emt 0:01:13]} Qxd4 {[%emt 0:00:58]} 39. Rb2 {[%emt 0:01:31]} Nf4 {[%emt 0:00:55]} 40. Kh2 {[%emt 0:00:00]} Nf1+ {[%emt 0:00:00]} 41. Qxf1 {[%emt 0:06:45]} Qxb2+ {[%emt 0:02:43]} 42. Kg3 {[%emt 0:00:05]} Nh5+ {[%emt 0:00:56]} 43. Kf3 {[%emt 0:00:11]} Qa3+ {[%emt 0:00:11]} 44. Kf2 {[%emt 0:01:16]} Qxa4 {[%emt 0:01:27]} 45. Qb1 {[%emt 0:00:10]} Qd4+ {[%emt 0:01:02]} 46. Ke2 {[%emt 0:02:07]} Nf4+ {[%emt 0:01:30]} 47. Kf3 {[%emt 0:00:33]} Qd3+ {[%emt 0:03:07]} 48. Qxd3 {[%emt 0:00:06]} Nxd3 {[%emt 0:00:04]} 49. b6 {[%emt 0:00:06]} Nc5 {[%emt 0:00:17]} 50. Ke3 {[%emt 0:00:06]} Kf7 {[%emt 0:01:13]} 51. Kd4 {[%emt 0:00:11]} Nd7 {[%emt 0:00:11]} 52. b7 {[%emt 0:00:10]} Ke7 {[%emt 0:00:22]} 53. Kd5 {[%emt 0:00:09]} Kd8 {[%emt 0:00:56]} 54. Ke6 {[%emt 0:00:37]} f5 {[%emt 0:00:29]} 0-1

[Event "Reykjavik Chess Congress 2020"]
[Site "Reykjavik"]
[Date "2020.01.29"]
[Round "8.3"]
[White "Mai, Alexander Oliver"]
[Black "Hardarson, Petur Palmi"]
[Result "*"]
[ECO "E92"]
[WhiteElo "1958"]
[BlackElo "2027"]
[Annotator "NA RC"]
[PlyCount "59"]
[EventDate "2020.01.05"]
[EventType "swiss"]
[EventCountry "ISL"]
[SourceTitle "playchess.com"]
[Source "ChessBase"]
[SourceQuality "1"]
[TimeControl "40/5400+30:900+30"]

1. d4 {[%emt 0:00:06]} Nf6 {[%emt 0:03:47]} 2. c4 {[%emt 0:00:00]} g6 {[%emt 0:00:14]} 3. Nc3 {[%emt 0:00:00]} Bg7 {[%emt 0:00:08]} 4. e4 {[%emt 0:00:00]} d6 {[%emt 0:00:10]} 5. Nf3 {[%emt 0:00:00]} O-O {[%emt 0:00:19]} 6. Be2 {[%emt 0:00:00]} e5 {[%emt 0:01:16]} 7. dxe5 {[%emt 0:00:24]} dxe5 {[%emt 0:00:15]} 8. Qxd8 {[%emt 0:00:06]} Rxd8 {[%emt 0:00:12]} 9. Bg5 {[%emt 0:00:06]} Re8 {[%emt 0:02:18]} 10. Nd5 {[%emt 0:00:13]} Nxd5 {[%emt 0:00:36]} 11. cxd5 {[%emt 0:00:06]} c6 {[%emt 0:01:15]} 12. Bc4 {[%emt 0:00:39]} cxd5 {[%emt 0:01:03]} 13. Bxd5 {[%emt 0:00:06]} Nd7 {[%emt 0:01:21]} 14. Nd2 {[%emt 0:04:11]} Nb6 {[%emt 0:02:37]} 15. Bb3 $1 {[%emt 0:00:15] E92: King's Indian: Classical: 6 Be2 e5: 7 dxe5, 7 Be3 and Petrosian System without 7...Nbd7} Be6 {[%emt 0:02:09]} 16. Ke2 {[%emt 0:03:31]} (16. O-O-O f6 17. Bxe6+ Rxe6 18. Be3 Bf8 19. Kb1 Rc8 {½-½ (19) Erigaisi,A (2517)-Amin,B (2684) Abu Dhabi 2018}) 16... Bxb3 {[%emt 0:06:45]} 17. axb3 {[%emt 0:01:46]} a6 {[%emt 0:01:26]} 18. Rhc1 {[%emt 0:06:00]} Rac8 {[%emt 0:01:54]} 19. Be3 $146 {[%emt 0:02:04]} ({Predecessor:} 19. Nc4 Nxc4 20. bxc4 f6 21. Be3 Rc6 22. c5 Rec8 {½-½ (43) Evans,A-Clarke,D England 1988}) 19... Nd7 {[%emt 0:01:11]} 20. Nc4 {[%emt 0:02:48]} Bf8 {[%emt 0:04:53]} 21. Na5 {[%emt 0:20:38]} b6 {[%emt 0:12:48]} 22. Nc4 {[%emt 0:09:22]} b5 {[%emt 0:01:40]} 23. Nb6 {[%emt 0:01:21]} Nxb6 {[%emt 0:01:22]} 24. Bxb6 {[%emt 0:00:13]} Rxc1 {[%emt 0:05:49]} 25. Rxc1 {[%emt 0:00:08]} Re6 {[%emt 0:00:39]} 26. Be3 {[%emt 0:02:45]} Kg7 {[%emt 0:02:16]} 27. Rc8 {[%emt 0:01:47]} Bb4 {[%emt 0:03:26]} 28. Bc5 {[%emt 0:01:23]} Bxc5 {[%emt 0:01:47]} 29. Rxc5 {[%emt 0:00:02]} Kf6 {[%emt 0:02:45]} 30. f3 $11 {[%emt 0:02:38]} *